fUST/lending_fUST_20240319
["ID","MTS","AMOUNT","RATE_DAILY","PERIOD"]
[319558429,1710857352246,-155.20132746,0.00063342,7]
[319558430,1710857352266,-155.25530318,0.00063342,30]
[319558431,1710857352288,-236.41458362,0.00063342,7]
[319558432,1710857352307,-362.46445978,0.00063342,7]
[319558433,1710857352325,-2605.68250461,0.00063343,7]
[319558434,1710857352344,-445.28611643,0.00063371,120]
[319558435,1710857352364,-500.0,0.00063371,120]
[319558436,1710857352382,-500.0,0.00063371,120]
[319558437,1710857352402,-306.48943384,0.00063371,120]
[319558438,1710857352420,-331.8913926,0.00063371,120]
[319558439,1710857352439,-1171.33504893,0.00063394,7]
[319558440,1710857352458,-154.92253873,0.00063394,12]
[319558441,1710857352477,-172.30064643,0.00063394,7]
[319558442,1710857352496,-155.52248857,0.00063394,7]
[319558443,1710857352519,-151.88689435,0.00065995,120]
[319558444,1710857352541,-990.0,0.00068493,120]
[319558445,1710857352561,-387.44155359,0.0006928,2]
[319558446,1710857352580,-166.666666,0.0006938,2]
[319558447,1710857352600,-5000.0,0.0007,120]
[319558448,1710857352619,-5000.0,0.0007,120]
[319558449,1710857352639,-1000.0,0.00075451,120]
[319558450,1710857352658,-1000.0,0.00082191,120]
[319558451,1710857352677,-1000.0,0.00084931,120]
[319558452,1710857352696,-1000.0,0.00087671,120]
[319558453,1710857352715,-2000.0,0.0008798,120]
[319558454,1710857352735,-2000.0,0.0008798,120]
[319558455,1710857352753,-2000.0,0.0008798,120]
[319558456,1710857352772,-2000.0,0.0008798,120]
[319558457,1710857352793,-2000.0,0.0008798,120]
[319558458,1710857352812,-1000.0,0.0009041,120]
[319558459,1710857352832,-1000.0,0.00091797,120]
[319558460,1710857352850,-1000.0,0.0009315,120]
[319558461,1710857352869,-1000.0,0.00095,120]
[319558462,1710857352887,-1000.0,0.00095,120]
[319558463,1710857352906,-1000.0,0.00095,120]
[319558464,1710857352925,-1000.0,0.0009589,120]
[319558465,1710857352944,-1026.28122406,0.0009589,120]
[319558466,1710857352963,-990.0,0.0009589,120]
[319558467,1710857352982,-2143.34259953,0.00098,120]
[319558468,1710857369154,-36742.4633267,0.00098,120]
[319558469,1710857369174,-1000.0,0.0009863,120]
[319558470,1710857377267,4895.36428632,0.00062,120]
[319558471,1710857377291,3057.55571368,0.00062,120]
[319558472,1710857393530,500.0,0.0007,120]
[319558473,1710857412133,500.0,0.0008,120]
[319558474,1710857428266,500.0,0.00089,120]
[319558512,1710857432570,-1592068.00000007,0.00063372,60]
[319558513,1710857432583,-150.0,0.000959,7]
[319558514,1710857432597,-200.0,0.00098433,120]
[319558517,1710857432607,-500.0,0.00099,120]
[319558519,1710857432616,-5000.0,0.001,120]
[319558521,1710857432626,-5000.0,0.001,120]
[319558523,1710857432635,-500.0,0.001,120]
[319558525,1710857432644,-500.0,0.001,120]
[319558526,1710857432653,-1000.0,0.00101369,120]
[319558528,1710857432663,-1000.0,0.00104109,120]
[319558529,1710857432672,-1000.0,0.00106849,120]
[319558530,1710857432683,-500.0,0.00109589,120]
[319558531,1710857432692,-500.0,0.00109589,120]
[319558532,1710857432702,-500.0,0.00109589,120]
[319558533,1710857432712,-500.0,0.00109589,120]
[319558534,1710857432721,-500.0,0.00109589,120]
[319558535,1710857432732,-500.0,0.00109589,120]
[319558537,1710857432742,-500.0,0.00109589,120]
[319558539,1710857432752,-1857.19,0.00109589,120]
[319558541,1710857432762,-659.01,0.00109589,10]
[319558542,1710857432771,-500.0,0.00109589,120]
[319558543,1710857432780,-520.59,0.00109589,120]
[319558544,1710857432789,-500.0,0.00109589,120]
[319558545,1710857432799,-500.0,0.00109589,120]
[319558546,1710857432808,-1151.06,0.00109589,120]
[319558547,1710857432818,-250.0,0.00109589,120]
[319558548,1710857432828,-499.00000002,0.00109589,120]
[319558549,1710857432839,-1395.14,0.00109589,120]
[319558550,1710857432849,-500.0,0.00109589,120]
[319558551,1710857432859,-1041.91,0.00109589,120]
[319558552,1710857432870,-500.0,0.00109589,120]
[319558553,1710857432880,-1818.91,0.00109589,120]
[319558554,1710857432889,-500.0,0.00109589,120]
[319558555,1710857432900,-1935.68,0.00109589,120]
[319558556,1710857432909,-500.0,0.00109589,120]
[319558557,1710857432919,-593.43,0.00109589,120]
[319558558,1710857432929,-500.0,0.00109589,120]
[319558559,1710857432939,-500.0,0.00109589,120]
[319558560,1710857432949,-1383.01,0.00109589,120]
[319558561,1710857432959,-1869.43,0.00109589,120]
[319558562,1710857432968,-500.0,0.00109589,120]
[319558563,1710857432977,-2303.31,0.00109589,120]
[319558564,1710857432986,-757.27,0.00109589,120]
[319558565,1710857432996,-717.69,0.00109589,120]
[319558566,1710857433007,-500.0,0.00109589,120]
[319558567,1710857433017,-500.0,0.00109589,120]
[319558568,1710857433027,-500.0,0.00109589,120]
[319558569,1710857433037,-1348.73,0.00109589,120]
[319558570,1710857433047,-1000.0,0.00109589,120]
[319558571,1710857433057,-500.0,0.00109589,120]
[319558572,1710857433067,-834.01,0.00109589,120]
[319558573,1710857433077,-1383.89,0.00109589,120]
[319558574,1710857433090,-500.0,0.00109589,120]
[319558575,1710857433102,-5022.26,0.00109589,120]
[319558576,1710857433112,-1000.0,0.00109589,120]
[319558577,1710857433122,-2309.75,0.00109589,120]
[319558578,1710857433133,-170.09118465,0.00109589,120]
[319558579,1710857433143,-500.0,0.00109589,120]
[319558580,1710857433153,-2758.43,0.00109589,120]
[319558581,1710857433165,-500.0,0.00109589,120]
[319558582,1710857433175,-969.93,0.00109589,120]
[319558583,1710857433185,-500.0,0.00109589,120]
[319558584,1710857433196,-4592.15,0.00109589,120]
[319558585,1710857433206,-500.0,0.00109589,120]
[319558586,1710857433216,-780.44,0.00109589,120]
[319558587,1710857433226,-1919.1,0.00109589,120]
[319558588,1710857433235,-500.0,0.00109589,120]
[319558589,1710857433324,-500.0,0.00109589,120]
[319558590,1710857433334,-500.0,0.00109589,7]
[319558591,1710857433348,-500.0,0.00109589,120]
[319558592,1710857433357,-829.78,0.00109589,120]
[319558593,1710857433366,-23794.18,0.00109589,120]
[319558594,1710857433376,-500.0,0.00109589,120]
[319558595,1710857433384,-500.0,0.00109589,120]
[319558596,1710857433394,-365.25611997,0.00109589,120]
[319558597,1710857433403,-772.33,0.00109589,120]
[319558598,1710857433412,-711.95,0.00109589,120]
[319558599,1710857433429,-500.0,0.00109589,90]
[319558600,1710857433444,-3298.65,0.00109589,120]
[319558601,1710857433455,-2073.74,0.00109589,120]
[319558602,1710857433466,-500.0,0.00109589,120]
[319558603,1710857433477,-500.0,0.00109589,120]
[319558604,1710857433488,-7440.37,0.00109589,120]
[319558605,1710857433498,-835.29,0.00109589,120]
[319558606,1710857433509,-1845.45,0.00109589,120]
[319558607,1710857433519,-658.41,0.00109589,60]
[319558608,1710857433529,-2470.95,0.00109589,120]
[319558609,1710857433544,-500.0,0.00109589,120]
[319558610,1710857433556,-500.0,0.00109589,120]
[319558611,1710857433568,-4035.99,0.00109589,120]
[319558612,1710857433581,-500.0,0.00109589,120]
[319558613,1710857433595,-695.88,0.00109589,120]
[319558614,1710857433606,-1070.9,0.00109589,120]
[319558615,1710857433617,-500.0,0.00109589,120]
[319558616,1710857433628,-514.89,0.00109589,120]
[319558617,1710857433638,-3969.69,0.00109589,120]
[319558618,1710857433648,-1164.39,0.00109589,120]
[319558619,1710857433658,-1192.25,0.00109589,120]
[319558620,1710857433668,-1248.27,0.00109589,120]
[319558621,1710857433678,-758.65,0.00109589,120]
[319558622,1710857433689,-184821.71545084,0.0011,120]
[319558623,1710857433699,-5000.0,0.00111685,120]
[319558624,1710857433709,-1000.0,0.00112328,120]
[319558625,1710857433719,-1000.0,0.00115068,120]
[319558626,1710857433730,-1000.0,0.00117808,120]
[319558627,1710857433740,-1000.0,0.00120547,120]
[319558628,1710857433750,-1000.0,0.00123287,120]
[319558629,1710857433760,-990.0,0.00123287,120]
[319558630,1710857433771,-1000.0,0.00126027,120]
[319558631,1710857433781,-1004.21000003,0.00128767,120]
[319558632,1710857433792,-5000.0,0.00135882,120]
[319558633,1710857433802,-1878.40540699,0.00139,120]
[319558634,1710857433812,-1000.0,0.00149,120]
[319558635,1710857433822,-990.0,0.00150684,120]
[319558636,1710857433832,-1000.0,0.00150684,7]
[319558637,1710857433845,-151.88689435,0.00151531,120]
[319558638,1710857433854,-1000.0,0.00159,120]
[319558639,1710857433865,-153.0,0.00163562,120]
[319558640,1710857433874,-402.4065288,0.00163562,120]
[319558641,1710857433884,-360.6938761,0.00163562,120]
[319558642,1710857433893,-153.0,0.00164384,120]
[319558643,1710857433903,-5000.0,0.00165322,120]
[319558644,1710857433913,-1000.0,0.00169,120]
[319558645,1710857433923,-990.0,0.00178082,120]
[319558646,1710857433932,-1000.0,0.00179,120]
[319558647,1710857433941,-1000.0,0.00189,120]
[319558648,1710857433952,-151.88689435,0.00189576,120]
[319558649,1710857433962,-156.89016688,0.00192,120]
[319558650,1710857433973,-1000.0,0.00199,120]
[319558651,1710857433984,-170.995944,0.00199073,2]
[319558652,1710857433994,-75867.16756657,0.00199706,120]
[319558653,1710857434005,-75867.16756657,0.00199845,120]
[319558654,1710857434015,-75867.16756657,0.00199847,120]
[319558655,1710857434025,-5000.0,0.002,120]
[319558656,1710857434034,-5000.0,0.002,120]
[319558657,1710857434045,-3000.0,0.002,120]
[319558658,1710857434055,-10000.0,0.00201139,120]
[319558659,1710857434066,-151.88689435,0.00201898,120]
[319558660,1710857434076,-990.0,0.00205479,120]
[319558661,1710857434087,-151.88689435,0.00206928,120]
[319558662,1710857434100,-2000.0,0.00209,120]
[319558663,1710857434111,-2000.0,0.00219,120]
[319558664,1710857434128,-13956.67,0.00220856,120]
[319558665,1710857434145,-151.88689435,0.00228636,120]
[319558666,1710857434160,-2000.0,0.00229,120]
[319558667,1710857434176,-990.0,0.00232876,120]
[319558668,1710857434189,-2000.0,0.00239,120]
[319558669,1710857434202,-10000.0,0.00244717,120]
[319558670,1710857434218,-500.0,0.00246575,120]
[319558671,1710857434232,-500.0,0.00246575,120]
[319558672,1710857434246,-500.0,0.00246575,120]
[319558673,1710857434264,-500.0,0.00246575,120]
[319558674,1710857434280,-500.0,0.00246575,120]
[319558675,1710857434295,-500.0,0.00246575,120]
[319558676,1710857434309,-500.0,0.00246575,120]
[319558677,1710857434321,-1857.19,0.00246575,120]
[319558678,1710857434335,-659.01,0.00246575,10]
[319558679,1710857434354,-500.0,0.00246575,120]
[319558680,1710857434368,-520.59,0.00246575,120]
[319558681,1710857434380,-500.0,0.00246575,120]
[319558682,1710857434393,-500.0,0.00246575,120]
[319558683,1710857434407,-1151.06,0.00246575,120]
[319558684,1710857434420,-250.0,0.00246575,120]
[319558685,1710857434431,-1395.14,0.00246575,120]
[319558686,1710857434443,-306.70704233,0.00246575,120]
[319558687,1710857434468,-1041.91,0.00246575,120]
[319558688,1710857434482,-500.0,0.00246575,120]
[319558689,1710857434496,-1818.91,0.00246575,120]
[319558690,1710857434511,-500.0,0.00246575,120]
[319558691,1710857434523,-1935.68,0.00246575,120]
[319558692,1710857434536,-500.0,0.00246575,120]
[319558693,1710857434550,-593.43,0.00246575,120]
[319558694,1710857434562,-500.0,0.00246575,120]
[319558695,1710857434576,-500.0,0.00246575,120]
[319558696,1710857434594,-1383.01,0.00246575,120]
[319558697,1710857434608,-1869.43,0.00246575,120]
[319558698,1710857434621,-500.0,0.00246575,120]
[319558699,1710857434635,-2303.31,0.00246575,120]
[319558700,1710857434646,-757.27,0.00246575,120]
[319558701,1710857434656,-717.69,0.00246575,120]
[319558702,1710857434667,-194.48859974,0.00246575,120]
[319558703,1710857434678,-500.0,0.00246575,120]
[319558704,1710857434691,-500.0,0.00246575,120]
[319558705,1710857434704,-1348.73,0.00246575,120]
[319558706,1710857434716,-500.0,0.00246575,120]
[319558707,1710857434729,-834.01,0.00246575,120]
[319558708,1710857434742,-1383.89,0.00246575,120]
[319558709,1710857434755,-500.0,0.00246575,120]
[319558710,1710857434768,-5022.26,0.00246575,120]
[319558711,1710857434779,-1000.0,0.00246575,120]
[319558712,1710857434791,-2309.75,0.00246575,120]
[319558713,1710857434803,-500.0,0.00246575,120]
[319558714,1710857434815,-2758.43,0.00246575,120]
[319558715,1710857434827,-500.0,0.00246575,120]
[319558716,1710857434841,-969.93,0.00246575,120]
[319558717,1710857434853,-500.0,0.00246575,120]
[319558718,1710857434866,-4592.15,0.00246575,120]
[319558719,1710857434878,-500.0,0.00246575,120]
[319558720,1710857434890,-780.44,0.00246575,120]
[319558721,1710857434901,-1919.1,0.00246575,120]
[319558722,1710857434914,-500.0,0.00246575,120]
[319558723,1710857434925,-500.0,0.00246575,120]
[319558724,1710857434937,-600.36872495,0.00246575,7]
[319558725,1710857434948,-500.0,0.00246575,120]
[319558726,1710857434959,-829.78,0.00246575,120]
[319558727,1710857434970,-23794.18,0.00246575,120]
[319558728,1710857434982,-772.33,0.00246575,120]
[319558729,1710857434993,-711.95,0.00246575,120]
[319558730,1710857435005,-500.0,0.00246575,90]
[319558731,1710857435017,-3298.65,0.00246575,120]
[319558732,1710857435028,-2073.74,0.00246575,120]
[319558733,1710857435040,-500.0,0.00246575,120]
[319558734,1710857435051,-500.0,0.00246575,120]
[319558735,1710857435063,-7440.37,0.00246575,120]
[319558736,1710857435074,-835.29,0.00246575,120]
[319558737,1710857435086,-1845.45,0.00246575,120]
[319558738,1710857435102,-658.41,0.00246575,60]
[319558739,1710857435115,-2470.95,0.00246575,120]
[319558740,1710857435126,-318.255059,0.00246575,120]
[319558741,1710857435138,-500.0,0.00246575,120]
[319558742,1710857435251,-1000.0,0.00246575,7]
[319558743,1710857435261,-4035.99,0.00246575,120]
[319558744,1710857435278,-500.0,0.00246575,120]
[319558745,1710857435288,-695.88,0.00246575,120]
[319558746,1710857435298,-1070.9,0.00246575,120]
[319558747,1710857435307,-500.0,0.00246575,120]
[319558748,1710857435317,-514.89,0.00246575,120]
[319558749,1710857435327,-3969.69,0.00246575,120]
[319558750,1710857435339,-1164.39,0.00246575,120]
[319558751,1710857435350,-1192.25,0.00246575,120]
[319558752,1710857435360,-1248.27,0.00246575,120]
[319558753,1710857435370,-758.65,0.00246575,120]
[319558754,1710857435380,-2000.0,0.00249,120]
[319558755,1710857435398,-2577.0,0.0025,120]
[319558756,1710857435413,-1500.0,0.0025,120]
[319558757,1710857435423,-600.0,0.0025,120]
[319558758,1710857435433,-2000.0,0.00259,120]
[319558759,1710857435443,-990.0,0.00260273,120]
[319558760,1710857435454,-2000.0,0.00269,120]
[319558761,1710857435464,-151.88689435,0.00276458,120]
[319558762,1710857435475,-233.91,0.0027898,35]
[319558763,1710857435484,-150.5,0.0027899,35]
[319558764,1710857435495,-2000.0,0.00279,120]
[319558765,1710857435505,-990.0,0.00287671,120]
[319558766,1710857435515,-157.10981312,0.00289,120]
[319558767,1710857435525,-2000.0,0.00289,120]
[319558768,1710857435538,-10000.0,0.00297735,120]
[319558769,1710857435560,-2000.0,0.002988,120]
[319558770,1710857435575,-80924.97873768,0.00298866,120]
[319558771,1710857435587,-80924.97873768,0.00298967,120]
[319558772,1710857435603,-80924.97873768,0.00298978,120]
[319558773,1710857435614,-2000.0,0.00299,120]
[319558774,1710857435625,-5000.0,0.003,120]
[319558775,1710857435636,-2000.0,0.003,120]
[319558776,1710857435648,-30440.50905758,0.003,120]
[319558777,1710857435659,-3000.0,0.003,120]
[319558778,1710857435671,-5000.0,0.003,120]
[319558779,1710857435684,-2000.0,0.00309,120]
[319558780,1710857435695,-990.0,0.00315068,120]
[319558781,1710857435705,-2000.0,0.00319,120]
[319558782,1710857435716,-2000.0,0.0032,120]
[319558783,1710857435726,-2000.0,0.00329,120]
[319558784,1710857435737,-2000.0,0.00339,120]
[319558785,1710857435747,-2000.0,0.0034,120]
[319558786,1710857435758,-990.0,0.00342465,120]
[319558787,1710857435769,-13956.67,0.00347744,120]
[319558788,1710857435780,-1000.0,0.00349,120]
[319558789,1710857435791,-3000.0,0.0035,120]
[319558790,1710857435801,-2000.0,0.00359,120]
[319558791,1710857435812,-2112.3,0.0036,99]
[319558792,1710857435823,-2000.0,0.0036,120]
[319558793,1710857435834,-10000.0,0.0036224,120]
[319558794,1710857435846,-150.5,0.00364082,35]
[319558795,1710857435857,-150.5,0.00364092,35]
[319558796,1710857435868,-150.5,0.00364102,35]
[319558797,1710857435878,-1000.0,0.00369,120]
[319558798,1710857435888,-990.0,0.00369863,120]
[319558799,1710857435898,-2000.0,0.00379,120]
[319558800,1710857435909,-2000.0,0.0038,120]
[319558801,1710857435919,-500.0,0.00383561,120]
[319558802,1710857435929,-500.0,0.00383561,120]
[319558803,1710857435940,-500.0,0.00383561,120]
[319558804,1710857435949,-263.47518779,0.00383561,120]
[319558805,1710857435960,-500.0,0.00383561,120]
[319558806,1710857435971,-500.0,0.00383561,120]
[319558807,1710857435981,-500.0,0.00383561,120]
[319558808,1710857435991,-1857.19,0.00383561,120]
[319558809,1710857436002,-659.01,0.00383561,10]
[319558810,1710857436013,-500.0,0.00383561,120]
[319558811,1710857436024,-520.59,0.00383561,120]
[319558812,1710857436034,-500.0,0.00383561,120]
[319558813,1710857436045,-500.0,0.00383561,120]
[319558814,1710857436055,-1151.06,0.00383561,120]
[319558815,1710857436066,-250.0,0.00383561,120]
[319558816,1710857436077,-1395.14,0.00383561,120]
[319558817,1710857436090,-1041.91,0.00383561,120]
[319558818,1710857436101,-500.0,0.00383561,120]
[319558819,1710857436111,-1818.91,0.00383561,120]
[319558820,1710857436121,-270.8831729,0.00383561,120]
[319558821,1710857436132,-1935.68,0.00383561,120]
[319558822,1710857436142,-593.43,0.00383561,120]
[319558823,1710857436152,-500.0,0.00383561,120]
[319558824,1710857436164,-500.0,0.00383561,120]
[319558825,1710857436175,-1383.01,0.00383561,120]
[319558826,1710857436186,-1869.43,0.00383561,120]
[319558827,1710857436196,-500.0,0.00383561,120]
[319558828,1710857436208,-2303.31,0.00383561,120]
[319558829,1710857436219,-757.27,0.00383561,120]
[319558830,1710857436231,-717.69,0.00383561,120]
[319558831,1710857436242,-500.0,0.00383561,120]
[319558832,1710857436252,-271.0108519,0.00383561,120]
[319558833,1710857436263,-1348.73,0.00383561,120]
[319558834,1710857436273,-500.0,0.00383561,120]
[319558835,1710857436284,-834.01,0.00383561,120]
[319558836,1710857436295,-1383.89,0.00383561,120]
[319558837,1710857436306,-500.0,0.00383561,120]
[319558838,1710857436317,-5022.26,0.00383561,120]
[319558839,1710857436328,-1000.0,0.00383561,120]
[319558840,1710857436340,-2309.75,0.00383561,120]
[319558841,1710857436351,-500.0,0.00383561,120]
[319558842,1710857436362,-2758.43,0.00383561,120]
[319558843,1710857436372,-500.0,0.00383561,120]
[319558844,1710857436383,-969.93,0.00383561,120]
[319558845,1710857436394,-500.0,0.00383561,120]
[319558846,1710857436405,-4592.15,0.00383561,120]
[319558847,1710857436415,-500.0,0.00383561,120]
[319558848,1710857436426,-780.44,0.00383561,120]
[319558849,1710857436437,-1919.1,0.00383561,120]
[319558850,1710857436447,-500.0,0.00383561,120]
[319558851,1710857436458,-500.0,0.00383561,120]
[319558852,1710857436468,-500.0,0.00383561,120]
[319558853,1710857436478,-829.78,0.00383561,120]
[319558854,1710857436488,-23794.18,0.00383561,120]
[319558855,1710857436498,-772.33,0.00383561,120]
[319558856,1710857436508,-711.95,0.00383561,120]
[319558857,1710857436518,-500.0,0.00383561,90]
[319558858,1710857436528,-3298.65,0.00383561,120]
[319558859,1710857436541,-2073.74,0.00383561,120]
[319558860,1710857436551,-357.473286,0.00383561,120]
[319558861,1710857436561,-500.0,0.00383561,120]
[319558862,1710857436572,-7440.37,0.00383561,120]
[319558863,1710857436585,-835.29,0.00383561,120]
[319558864,1710857436600,-1845.45,0.00383561,120]
[319558865,1710857436611,-658.41,0.00383561,60]
[319558866,1710857436621,-2470.95,0.00383561,120]
[319558867,1710857436631,-500.0,0.00383561,120]
[319558868,1710857436641,-1000.0,0.00383561,7]
[319558869,1710857436651,-4035.99,0.00383561,120]
[319558870,1710857436661,-500.0,0.00383561,120]
[319558871,1710857436673,-695.88,0.00383561,120]
[319558872,1710857436684,-1070.9,0.00383561,120]
[319558873,1710857436695,-500.0,0.00383561,120]
[319558874,1710857436706,-514.89,0.00383561,120]
[319558875,1710857436716,-3969.69,0.00383561,120]
[319558876,1710857436727,-1164.39,0.00383561,120]
[319558877,1710857436737,-1192.25,0.00383561,120]
[319558878,1710857436748,-1248.27,0.00383561,120]
[319558879,1710857436759,-758.65,0.00383561,120]
[319558880,1710857436769,-1000.0,0.00389,120]
[319558881,1710857436779,-990.0,0.0039726,120]
[319558882,1710857436789,-2000.0,0.003988,120]
[319558883,1710857436798,-1000.0,0.00399,120]
[319558884,1710857436808,-3000.0,0.004,120]
[319558885,1710857436818,-253.35228049,0.004,120]
[319558886,1710857436828,-5000.0,0.004,120]
[319558887,1710857436838,-2000.0,0.004,120]
[319558888,1710857436856,-460.98162401,0.004,120]
[319558889,1710857436866,-4498.0,0.004,120]
[319558890,1710857436876,-1009.0,0.004,120]
[319558891,1710857436886,-5000.0,0.004,120]
[319558892,1710857436897,-1000.0,0.00409,120]
[319558893,1710857436908,-1000.0,0.00419,120]
[319558894,1710857436917,-2000.0,0.0042,120]
[319558895,1710857436928,-472.14000049,0.00424657,120]
[319558896,1710857436938,-1000.0,0.00429,120]
[319558897,1710857436948,-1000.0,0.00439,120]
[319558898,1710857436958,-2000.0,0.0044,120]
[319558899,1710857436968,-10000.0,0.00440721,120]
[319558900,1710857436978,-1000.0,0.00449,120]
[319558901,1710857436989,-10000.0,0.0045,120]
[319558902,1710857436999,-1000.0,0.00459,120]
[319558903,1710857437010,-2000.0,0.0046,120]
[319558904,1710857437020,-1000.0,0.00469,120]
[319558905,1710857437031,-13956.67,0.00474632,120]
[319558906,1710857437042,-3522.95981,0.00479,101]
[319558907,1710857437053,-1000.0,0.00479,120]
[319558908,1710857437063,-2000.0,0.0048,120]
[319558909,1710857437074,-75213.6505325,0.0048,120]
[319558923,1710857438575,-47981.60970104,0.0048,120]
[319558924,1710857438592,-1358.09055888,0.0048,120]
[319558925,1710857438610,-536.31635436,0.0048,120]
[319558962,1710857440727,-1296.7,0.00109589,120]
[319558963,1710857440737,-1296.7,0.00246575,120]
[319558964,1710857440746,-1296.7,0.00383561,120]
[319558965,1710857440757,-81447.21133161,0.0048,120]
[319558966,1710857440767,-18905.9486684,0.0048,120]
[319558967,1710857440779,-5260.57461785,0.0048,120]
[319559376,1710857491393,166.666666,0.00061007,2]
[319559377,1710857495203,166.666666,0.0006267,2]
[319559378,1710857495410,166.666666,0.00064334,2]
[319559379,1710857495682,166.666666,0.00065997,2]
[319559380,1710857495885,166.666666,0.0006766,2]
[319559381,1710857496304,166.666666,0.00069324,2]
[319559382,1710857565427,10000.0,0.000575,2]
[319559383,1710857729620,10000.0,0.000575,2]
[319559384,1710857761126,10000.0,0.000595,2]
[319559385,1710857837182,151.88689435,0.00034602,7]
[319559386,1710857871843,10000.0,0.00059,15]
[319559388,1710857965985,6909.84,0.000595,2]
[319559389,1710858008684,620.95743444,0.00059062,30]
[319559390,1710858051179,10000.0,0.000595,20]
[319559391,1710858072367,17296.06,0.00067042,120]
[319559392,1710858352176,-155.15515516,0.00061396,2]
[319559393,1710858352325,-1601.24435636,0.00062015,7]
[319559394,1710858401244,10000.0,0.000595,20]
[319559413,1710858446132,-1774.50420611,0.00062015,7]
[319559414,1710858446159,-620.04787172,0.00062016,30]
[319559415,1710858446184,-900.0,0.0008145,120]
[319559416,1710858446208,-166.666666,0.00100015,2]
[319559417,1710858446232,-166.666666,0.00102742,2]
[319559418,1710858446262,-15000.0,0.00104,120]
[319559419,1710858446288,-166.666666,0.00105468,2]
[319559420,1710858446419,-18982.96,0.001068,120]
[319559421,1710858446453,-36923.0,0.00108,120]
[319559422,1710858446475,-166.666666,0.00108195,2]
[319559423,1710858446496,-40000.0,0.00109,120]
[319559424,1710858446517,-947.16594341,0.00109588,14]
[319559425,1710858446537,-391.94683015,0.00109588,120]
[319559426,1710858446562,-500.0,0.00109589,120]
[319559427,1710858446584,-500.0,0.00109589,120]
[319559428,1710858446606,-259.92751584,0.00109589,120]
[319559429,1710858446626,-500.0,0.00109589,120]
[319559430,1710858446648,-500.0,0.00109589,120]
[319559431,1710858446669,-500.0,0.00109589,120]
[319559432,1710858446690,-500.0,0.00109589,120]
[319559433,1710858446711,-500.0,0.00109589,120]
[319559434,1710858446732,-611.01,0.00109589,10]
[319559435,1710858446752,-500.0,0.00109589,120]
[319559436,1710858446772,-500.0,0.00109589,120]
[319559437,1710858446794,-500.0,0.00109589,120]
[319559438,1710858446817,-500.0,0.00109589,120]
[319559439,1710858446840,-1727.04,0.00109589,120]
[319559440,1710858446862,-500.0,0.00109589,120]
[319559441,1710858446884,-1028.01,0.00109589,120]
[319559442,1710858446905,-250.0,0.00109589,120]
[319559443,1710858446927,-500.0,0.00109589,120]
[319559444,1710858446951,-500.0,0.00109589,120]
[319559445,1710858446974,-500.0,0.00109589,120]
[319559446,1710858446995,-624.99,0.00109589,120]
[319559447,1710858447015,-500.0,0.00109589,120]
[319559448,1710858447037,-1613.1,0.00109589,120]
[319559449,1710858447065,-501.06805902,0.00109589,120]
[319559450,1710858447086,-500.0,0.00109589,120]
[319559451,1710858447107,-500.0,0.00109589,120]